bitfinex/quotes_BTCUSD_20241117
["timestamp","ask_amount","ask_price","bid_price","bid_amount"]
[1731805981680,0.48027655,90727.0,90726.0,0.001713]
[1731805981937,0.05708697,90727.0,90726.0,0.001713]
[1731805982129,0.16951109,90727.0,90726.0,0.001713]
[1731805983294,0.16730697,90727.0,90726.0,0.001713]
[1731805983500,0.05708697,90727.0,90726.0,0.001713]
[1731805984544,0.16730697,90727.0,90726.0,0.001713]
[1731805984776,0.25302477,90727.0,90726.0,0.001713]
[1731805985011,0.14280477,90727.0,90726.0,0.001713]
[1731805985242,0.14060065,90727.0,90726.0,0.001713]
[1731805985481,0.02057319,90727.0,90726.0,0.001713]
[1731805985764,0.02059179,90727.0,90726.0,0.111933]
[1731805986459,0.12033644,90730.0,90726.0,0.001713]
[1731805986688,0.12033644,90730.0,90729.0,0.110218]
[1731805987109,0.02161248,90730.0,90729.0,0.110218]
[1731805988300,0.09872396,90731.0,90730.0,0.110217]
[1731805988511,0.14808594,90731.0,90730.0,0.110217]
[1731805988943,0.14808594,90731.0,90728.0,0.110219]
[1731805989171,0.14808594,90731.0,90726.0,0.001713]
[1731805989386,0.09886025,90728.0,90726.0,0.001713]
[1731805989640,0.09886025,90728.0,90727.0,0.11022]
[1731805989846,0.09886025,90728.0,90726.0,0.001713]
[1731805990063,0.21129264,90727.0,90726.0,0.001713]
[1731805990281,0.11022,90727.0,90726.0,0.001713]
[1731805990488,0.13082434,90727.0,90726.0,0.001713]
[1731805991122,0.22969345,90727.0,90726.0,0.001713]
[1731805991330,0.13082434,90727.0,90726.0,0.001713]
[1731805991542,0.22968882,90727.0,90726.0,0.001713]
[1731805993076,0.20908448,90727.0,90726.0,0.001713]
[1731805993284,0.22969445,90727.0,90726.0,0.001713]
[1731805993548,0.11947445,90727.0,90726.0,0.001713]
[1731805993967,0.02060997,90727.0,90726.0,0.001713]
[1731805995472,0.02060997,90727.0,90726.0,0.111934]
[1731805996275,0.02060997,90727.0,90726.0,0.001713]
[1731805996479,0.13082997,90727.0,90726.0,0.001713]
[1731805996679,0.02061366,90727.0,90726.0,0.001713]
[1731805997540,0.05359895,90727.0,90726.0,0.001713]
[1731805999319,0.16381895,90727.0,90726.0,0.001713]
[1731806001096,0.2627031,90727.0,90726.0,0.001713]
[1731806001737,0.16381895,90727.0,90726.0,0.001713]
[1731806002457,0.26271696,90727.0,90726.0,0.001713]
[1731806002697,0.16553335,90727.0,90726.0,0.001713]
[1731806003123,0.16553335,90727.0,90710.0,0.220482]
[1731806003124,0.16553335,90727.0,90690.0,0.09899681]
[1731806003330,0.05359895,90726.0,90720.0,0.110228]
[1731806003544,0.02061366,90725.0,90720.0,0.110228]
[1731806003756,0.05359895,90724.0,90720.0,0.110228]
[1731806003975,0.05359895,90723.0,90720.0,0.110228]
[1731806004196,0.05359895,90722.0,90718.0,0.110231]
[1731806004405,0.05359895,90721.0,90718.0,0.110231]
[1731806004615,0.05359895,90720.0,90718.0,0.11023]
[1731806004821,0.05359895,90719.0,90718.0,0.11023]
[1731806005698,0.05359895,90719.0,90706.0,0.0451]
[1731806005699,0.1626615,90719.0,90706.0,0.0451]
[1731806005909,0.10061426,90727.0,90707.0,0.16578524]
[1731806005910,0.08351368,90713.0,90707.0,0.16578524]
[1731806006127,0.05359895,90712.0,90707.0,0.16578524]
[1731806006352,0.02061366,90711.0,90701.0,0.220503]
[1731806006589,0.09889986,90717.0,90702.0,0.00220475]
[1731806006590,0.02061366,90710.0,90702.0,0.00220475]
[1731806006803,0.02061366,90709.0,90706.0,0.110245]
[1731806007012,0.02061366,90708.0,90706.0,0.110245]
[1731806007228,0.02061366,90707.0,90706.0,0.110245]
[1731806008529,0.22047,90715.0,90699.0,0.220509]
[1731806008747,0.110238,90713.0,90699.0,0.220509]
[1731806009011,0.22047,90715.0,90705.0,0.110247]
[1731806009248,0.110236,90714.0,90705.0,0.110247]
[1731806009458,0.31936986,90715.0,90705.0,0.110247]
[1731806009679,0.110239,90712.0,90705.0,0.110247]
[1731806010136,0.09889986,90716.0,90701.0,0.220504]
[1731806010371,0.220473,90714.0,90704.0,0.110248]
[1731806010595,0.110239,90712.0,90704.0,0.110248]
[1731806011048,0.31937286,90714.0,90704.0,0.110248]
[1731806011049,0.11024,90711.0,90704.0,0.110248]
[1731806011580,0.11024,90711.0,90696.0,0.075]
[1731806011815,0.11024,90711.0,90704.0,0.110248]
[1731806012519,0.11024,90711.0,90705.0,0.110247]
[1731806013549,0.110239,90712.0,90705.0,0.110247]
[1731806014033,0.110239,90712.0,90705.0,0.1111038]
[1731806014462,0.330713,90713.0,90705.0,0.1111038]
[1731806014665,0.11024,90711.0,90705.0,0.0008568]
[1731806015295,0.110241,90710.0,90705.0,0.0008568]
[1731806015502,0.220475,90713.0,90705.0,0.1111028]
[1731806015503,0.110237,90713.0,90705.0,0.1111028]
[1731806015720,0.110239,90712.0,90705.0,0.1111028]
[1731806016346,0.110238,90713.0,90706.0,0.110245]
[1731806016975,0.110238,90713.0,90705.0,0.0008568]
[1731806016976,0.110239,90712.0,90705.0,0.0008568]
[1731806017192,0.12043004,90716.0,90705.0,0.0008568]
[1731806017193,0.110236,90714.0,90705.0,0.0008568]
[1731806017402,0.110236,90714.0,90707.0,0.110244]
[1731806017621,0.12043004,90716.0,90705.0,0.1111038]
[1731806017622,0.110238,90713.0,90705.0,0.1111038]
[1731806017833,0.110238,90713.0,90706.0,0.110246]
[1731806018044,0.02154953,90716.0,90705.0,0.0008568]
[1731806018257,0.110235,90715.0,90708.0,0.110242]
[1731806018471,0.09888051,90715.0,90705.0,0.0008568]
[1731806018682,0.110238,90713.0,90705.0,0.0008568]
[1731806018913,0.110238,90713.0,90707.0,0.110244]
[1731806019178,0.20911651,90715.0,90707.0,0.110244]
[1731806019396,0.110237,90714.0,90707.0,0.110244]
[1731806019599,0.110236,90714.0,90707.0,0.110244]
[1731806020034,0.46975692,90720.0,90705.0,0.0008568]
[1731806020035,0.09888051,90722.0,90709.0,0.0758]
[1731806020257,0.16578524,90721.0,90720.0,0.110229]
[1731806020736,0.02059464,90721.0,90720.0,0.110229]
[1731806022069,0.02059464,90721.0,90709.0,0.0778]
[1731806022070,0.02059464,90721.0,90709.0,0.0758]
[1731806022317,0.0017144,90727.0,90709.0,0.0758]
[1731806022318,0.02059464,90720.0,90710.0,0.220482]
[1731806022574,0.02059464,90719.0,90716.0,0.220466]
[1731806022825,0.02059464,90718.0,90717.0,0.110232]
[1731806023548,0.0017144,90727.0,90716.0,0.220466]
[1731806023801,0.110223,90725.0,90720.0,0.110228]
[1731806024780,0.1119354,90727.0,90720.0,0.110228]
[1731806025015,0.1119354,90727.0,90711.0,0.16578524]
[1731806025016,0.0017144,90727.0,90723.0,0.110224]
[1731806025754,0.0017144,90727.0,90720.0,0.220456]
[1731806025998,0.0017144,90727.0,90713.0,0.00420438]
[1731806026224,0.0017144,90727.0,90722.0,0.110225]
[1731806026465,0.0017144,90727.0,90713.0,0.002]
[1731806026466,0.0017144,90727.0,90724.0,0.110224]
[1731806026717,0.16151368,90725.0,90706.0,0.023]
[1731806026970,0.08351368,90718.0,90712.0,0.16578524]
[1731806027198,0.220451,90723.0,90711.0,0.220479]
[1731806027420,0.11023,90719.0,90713.0,0.110237]
[1731806027648,0.11023,90719.0,90705.0,0.10991935]
[1731806027883,0.220453,90722.0,90714.0,0.110235]
[1731806028115,0.11023,90720.0,90714.0,0.110235]
[1731806028459,0.110228,90721.0,90714.0,0.110235]
[1731806028687,0.11023,90720.0,90714.0,0.110235]
[1731806029133,0.11023,90720.0,90712.0,0.220476]
[1731806029359,0.110227,90722.0,90716.0,0.110233]
[1731806030082,0.220453,90722.0,90712.0,0.220476]
[1731806030316,0.220453,90722.0,90714.0,0.110235]
[1731806030317,0.11023,90719.0,90714.0,0.110235]
[1731806031321,0.220453,90722.0,90715.0,0.110235]
[1731806031991,0.110228,90721.0,90714.0,0.110235]
[1731806032260,0.110229,90720.0,90714.0,0.110235]
[1731806032736,0.13271368,90724.0,90708.0,0.220487]
[1731806032737,0.11023,90719.0,90708.0,0.220487]
[1731806032963,0.11023,90719.0,90712.0,0.110238]
[1731806033438,0.11023,90719.0,90708.0,0.220487]
[1731806033666,0.11023,90719.0,90713.0,0.110237]
[1731806034136,0.220456,90721.0,90713.0,0.110237]
[1731806034137,0.110229,90720.0,90713.0,0.110237]
[1731806034362,0.110231,90719.0,90713.0,0.110237]
[1731806034593,0.110231,90719.0,90709.0,0.220485]
[1731806034829,0.110231,90719.0,90714.0,0.110236]
[1731806035723,0.13079574,90718.0,90712.0,0.110238]
[1731806036239,0.02056474,90717.0,90712.0,0.110238]
[1731806036502,0.02056474,90717.0,90707.0,0.110244]
[1731806036503,0.110237,90713.0,90707.0,0.110244]
[1731806036740,0.02056474,90712.0,90707.0,0.110244]
[1731806036984,0.02056474,90712.0,90705.0,0.0008568]
[1731806036985,0.110246,90706.0,90705.0,0.0008568]
[1731806037252,0.18001074,90706.0,90705.0,0.0008568]
[1731806038143,0.33026457,90706.0,90705.0,0.0008568]
[1731806038396,0.40606045,90706.0,90705.0,0.0008568]
[1731806038709,0.25801074,90706.0,90705.0,0.0008568]
[1731806039277,0.26021486,90706.0,90705.0,0.0008568]
[1731806039720,0.25801074,90706.0,90705.0,0.0008568]
[1731806040614,0.35663459,90706.0,90705.0,0.0008568]
[1731806040847,0.35661562,90706.0,90705.0,0.0008568]
[1731806041065,0.25799177,90706.0,90705.0,0.0008568]
[1731806041498,0.35660132,90706.0,90705.0,0.0008568]
[1731806042139,0.35662137,90706.0,90705.0,0.0008568]
[1731806042572,0.35660949,90706.0,90705.0,0.0008568]
[1731806042991,0.25799177,90706.0,90705.0,0.0008568]
[1731806043650,0.46567204,90706.0,90705.0,0.0008568]
[1731806043896,0.34650855,90706.0,90705.0,0.0008568]
[1731806044775,0.36704194,90706.0,90705.0,0.0008568]
[1731806048524,0.73091692,90706.0,90705.0,0.0008568]
[1731806049216,0.51488315,90706.0,90705.0,0.0008568]
[1731806049472,0.73086172,90706.0,90705.0,0.0008568]
[1731806049690,0.36875574,90706.0,90705.0,0.0008568]
[1731806049931,0.73257546,90706.0,90705.0,0.0008568]
[1731806050171,0.92975957,90706.0,90705.0,0.0008568]
[1731806050412,0.73257546,90706.0,90705.0,0.0008568]
[1731806050916,0.73254513,90706.0,90705.0,0.0008568]
[1731806051158,0.36875574,90706.0,90705.0,0.0008568]
[1731806051389,0.73254031,90706.0,90705.0,0.0008568]
[1731806052411,0.36875574,90706.0,90705.0,0.0008568]
[1731806052662,0.51656722,90706.0,90705.0,0.0008568]
[1731806052930,0.36875574,90706.0,90705.0,0.0008568]
[1731806053176,0.73251218,90706.0,90705.0,0.0008568]
[1731806053431,0.29175574,90706.0,90705.0,0.0008568]
[1731806054115,0.27122235,90706.0,90705.0,0.0008568]
[1731806054359,0.27342647,90706.0,90705.0,0.0008568]
[1731806055324,0.37196199,90706.0,90705.0,0.0008568]
[1731806055546,0.27122235,90706.0,90705.0,0.0008568]
[1731806055799,0.45547375,90706.0,90705.0,0.0008568]
[1731806056035,0.45326963,90706.0,90705.0,0.0008568]
[1731806056284,0.35473603,90706.0,90705.0,0.0008568]
[1731806056506,0.4532775,90706.0,90705.0,0.0008568]
[1731806056934,0.40133603,90706.0,90705.0,0.0008568]
[1731806057354,0.31782235,90706.0,90705.0,0.0008568]
[1731806058017,0.41634791,90706.0,90705.0,0.0008568]
[1731806058211,0.31782235,90706.0,90705.0,0.0008568]
[1731806058432,0.41634573,90706.0,90705.0,0.0008568]
[1731806058901,0.41634008,90706.0,90705.0,0.0008568]
[1731806059366,0.31782235,90706.0,90705.0,0.0008568]
[1731806060316,0.50133603,90706.0,90705.0,0.0008568]
[1731806060558,0.50633603,90706.0,90705.0,0.0008568]
[1731806061288,0.65411545,90706.0,90705.0,0.0008568]
[1731806061520,0.42282235,90706.0,90705.0,0.0008568]
[1731806061952,0.57060177,90706.0,90705.0,0.0008568]
[1731806062166,0.42282235,90706.0,90705.0,0.0008568]
[1731806062377,0.50633603,90706.0,90705.0,0.0008568]
[1731806062812,0.42282235,90706.0,90705.0,0.0008568]
[1731806063023,0.41782235,90706.0,90705.0,0.0008568]
[1731806063242,0.32102235,90706.0,90705.0,0.0008568]
[1731806063706,0.0017138,90706.0,90705.0,0.0008568]
[1731806064157,0.0017138,90706.0,90705.0,0.1111038]
[1731806064423,0.0017138,90706.0,90705.0,0.0008568]
[1731806065063,0.0017138,90706.0,90705.0,0.1111038]
[1731806065281,0.0017138,90706.0,90705.0,0.1905038]
[1731806068542,0.03633801,90716.0,90707.0,0.220489]
[1731806068978,0.110233,90717.0,90711.0,0.11024]
[1731806069684,0.1017136,90725.0,90708.0,0.16578524]
[1731806069900,0.1017136,90725.0,90705.0,0.0802568]
[1731806069901,0.03548886,90721.0,90720.0,0.110228]
[1731806070112,0.0017136,90725.0,90720.0,0.110228]
[1731806070331,0.0017136,90725.0,90718.0,0.220463]
[1731806070332,0.1119366,90725.0,90718.0,0.220463]
[1731806070570,0.0017136,90725.0,90710.0,0.220481]
[1731806070789,0.110229,90720.0,90715.0,0.110235]
[1731806071044,0.1325195,90722.0,90716.0,0.110233]
[1731806071262,0.2427465,90722.0,90710.0,0.220482]
[1731806071479,0.2427465,90722.0,90716.0,0.110233]
[1731806071480,0.3529735,90722.0,90716.0,0.110233]
[1731806071686,0.1325205,90722.0,90716.0,0.110233]
[1731806071895,0.0222935,90722.0,90711.0,0.22048]
[1731806072107,0.1325205,90722.0,90716.0,0.110233]
[1731806072315,0.1325205,90722.0,90717.0,0.110232]
[1731806072745,0.1325205,90722.0,90718.0,0.110231]
[1731806072954,0.0222935,90722.0,90719.0,0.110229]
[1731806073167,0.19373768,90724.0,90719.0,0.110229]
[1731806073381,0.0017138,90722.0,90719.0,0.110229]
[1731806073589,0.110232,90718.0,90712.0,0.110238]
[1731806074677,0.110232,90718.0,90713.0,0.110237]
[1731806075370,0.19374368,90719.0,90711.0,0.22048]
[1731806075579,0.19374368,90719.0,90713.0,0.110237]
[1731806075793,0.19374368,90719.0,90714.0,0.110236]
[1731806077047,0.110228,90721.0,90715.0,0.110234]
[1731806077494,0.110229,90720.0,90715.0,0.110234]
[1731806078145,0.110229,90720.0,90707.0,0.220489]
[1731806078146,0.0017138,90722.0,90707.0,0.220489]
[1731806078362,0.0017138,90722.0,90715.0,0.220468]
[1731806078577,0.0017138,90722.0,90721.0,0.110228]
[1731806080402,0.0017138,90722.0,90721.0,0.11243225]
[1731806082343,0.0017138,90722.0,90721.0,0.15903225]
[1731806082595,0.0017138,90722.0,90721.0,0.110228]
[1731806083489,0.110221,90727.0,90722.0,0.110226]
[1731806084146,0.110222,90726.0,90720.0,0.110228]
[1731806084354,0.0827,90728.0,90709.0,0.299884]
[1731806084355,0.110221,90727.0,90709.0,0.0814]
[1731806084563,0.0827,90728.0,90723.0,0.110225]
[1731806084815,0.19292,90728.0,90723.0,0.110225]
[1731806085031,0.110222,90726.0,90720.0,0.110228]
[1731806085273,0.19292,90728.0,90722.0,0.110226]
[1731806085483,0.110221,90727.0,90722.0,0.110226]
[1731806086123,0.0827,90728.0,90723.0,0.110224]
[1731806086344,0.192919,90728.0,90723.0,0.110224]
[1731806087638,0.192919,90728.0,90717.0,0.220465]
[1731806087639,0.0827,90728.0,90721.0,0.110227]
[1731806088287,0.0827,90728.0,90722.0,0.110226]
[1731806088703,0.110221,90727.0,90722.0,0.110226]
[1731806089119,0.110222,90726.0,90718.0,0.220463]
[1731806089328,0.110222,90726.0,90721.0,0.110228]
[1731806089966,0.110222,90726.0,90717.0,0.220465]
[1731806089967,0.19292,90728.0,90722.0,0.110226]
[1731806090255,0.110221,90727.0,90722.0,0.110226]
[1731806090896,0.0827,90728.0,90717.0,0.220465]
[1731806091102,0.19292,90728.0,90723.0,0.110225]
[1731806093968,0.0774,90738.0,90719.0,0.16578524]
[1731806094184,0.09844306,90746.0,90716.0,0.002]
[1731806094185,0.16578524,90737.0,90734.0,0.110211]
[1731806094608,0.110205,90740.0,90734.0,0.110211]
[1731806094815,0.110205,90740.0,90735.0,0.110211]
[1731806095256,0.03611889,90737.0,90728.0,0.220439]
[1731806095468,0.03611889,90737.0,90735.0,0.110211]
[1731806095891,0.03611889,90737.0,90721.0,0.220456]
[1731806096109,0.110212,90734.0,90728.0,0.110218]
[1731806096322,0.02057812,90733.0,90732.0,0.110214]
[1731806098361,0.03611889,90737.0,90730.0,0.220432]
[1731806098579,0.08351368,90739.0,90733.0,0.220425]
[1731806098580,0.04534677,90739.0,90733.0,0.220425]
[1731806098805,0.04534677,90739.0,90723.0,0.2213057]
[1731806098806,0.15555277,90739.0,90727.0,0.220439]
[1731806099018,0.15555277,90739.0,90723.0,0.2213057]
[1731806099019,0.15555277,90739.0,90725.0,0.220446]
[1731806099227,0.15555277,90739.0,90734.0,0.110211]
[1731806100063,0.04534677,90739.0,90732.0,0.220429]
[1731806100278,0.03552122,90740.0,90739.0,0.110206]
[1731806100486,0.03552122,90740.0,90725.0,0.0022041]
[1731806100487,0.0774,90745.0,90726.0,0.002]
[1731806100692,0.03546393,90744.0,90727.0,0.00220401]
[1731806100909,0.110204,90741.0,90725.0,0.220446]
[1731806101133,0.110201,90744.0,90724.0,0.17078524]
[1731806101352,0.03605481,90746.0,90740.0,0.110204]
[1731806101577,0.03605481,90746.0,90745.0,0.110198]
[1731806101778,0.16578524,90749.0,90744.0,0.110199]
[1731806101994,0.110193,90750.0,90744.0,0.110199]
[1731806102210,0.03643799,90749.0,90741.0,0.110202]
[1731806102423,0.110197,90747.0,90741.0,0.110202]
[1731806102634,0.110197,90747.0,90739.0,0.220411]
[1731806102635,0.110195,90748.0,90739.0,0.220411]
[1731806102865,0.110195,90748.0,90742.0,0.110202]
[1731806103072,0.220385,90750.0,90742.0,0.110202]
[1731806103073,0.110196,90747.0,90742.0,0.110202]
[1731806103697,0.19747343,90751.0,90739.0,0.220411]
[1731806103912,0.03655975,90751.0,90740.0,0.00220391]
[1731806104160,0.03655975,90751.0,90748.0,0.110194]
[1731806104387,0.03655975,90751.0,90735.0,0.075]
[1731806104388,0.02196058,90754.0,90735.0,0.075]
[1731806104629,0.02196058,90754.0,90748.0,0.22039]
[1731806104859,0.1,90756.0,90751.0,0.11019]
[1731806105063,0.220373,90755.0,90738.0,0.110207]
[1731806105276,0.110191,90752.0,90737.0,0.220417]
[1731806105533,0.02056643,90751.0,90746.0,0.110196]
[1731806105739,0.02056643,90750.0,90746.0,0.110196]
[1731806105937,0.02056643,90749.0,90744.0,0.220398]
[1731806106155,0.02056643,90748.0,90746.0,0.110196]
[1731806106364,0.110191,90752.0,90746.0,0.110196]
[1731806106365,0.02056643,90747.0,90746.0,0.110196]
[1731806108292,0.110191,90752.0,90746.0,0.110196]
[1731806108722,0.110191,90751.0,90746.0,0.110196]
[1731806108913,0.110189,90753.0,90746.0,0.110196]
[1731806109777,0.03659709,90756.0,90746.0,0.110196]
[1731806109987,0.110192,90751.0,90746.0,0.110196]
[1731806111306,0.110189,90753.0,90747.0,0.110196]
[1731806111957,0.110189,90753.0,90748.0,0.110195]
[1731806112166,0.220373,90755.0,90746.0,0.110197]
[1731806112167,0.11019,90752.0,90746.0,0.110197]
[1731806113308,0.110187,90755.0,90749.0,0.110192]
[1731806113513,0.1968078,90757.0,90747.0,0.220391]
[1731806113725,0.1968078,90757.0,90739.0,0.0008566]
[1731806113726,0.03589412,90757.0,90748.0,0.00220372]
[1731806113942,0.03589412,90757.0,90741.0,0.002]
[1731806114148,0.0017138,90758.0,90741.0,0.220407]
[1731806114349,0.110185,90756.0,90751.0,0.11019]
[1731806115193,0.21261697,90758.0,90749.0,0.220387]
[1731806115383,0.110185,90756.0,90740.0,0.227408]
[1731806115586,0.110185,90756.0,90750.0,0.110192]
[1731806116232,0.04683173,90758.0,90748.0,0.22039]
[1731806116486,0.04683173,90758.0,90740.0,0.225408]
[1731806116487,0.04683173,90758.0,90743.0,0.002]
[1731806116734,0.04683173,90758.0,90749.0,0.220386]
[1731806116955,0.15701473,90758.0,90752.0,0.110189]
[1731806117404,0.15701573,90758.0,90752.0,0.110189]
[1731806117620,0.15701573,90758.0,90750.0,0.220384]
[1731806117832,0.15701573,90758.0,90752.0,0.110189]
[1731806118046,0.0017138,90758.0,90757.0,0.110184]
[1731806121338,0.0017138,90758.0,90756.0,0.110184]
[1731806121549,0.0017138,90758.0,90757.0,0.110184]
[1731806121994,0.0017138,90758.0,90751.0,0.220383]
[1731806122430,0.0017138,90758.0,90754.0,0.110187]
[1731806122642,0.0017138,90758.0,90755.0,0.110186]
[1731806122859,0.0017138,90758.0,90749.0,0.220388]
[1731806123067,0.0017138,90758.0,90755.0,0.110186]
[1731806125642,0.1118978,90758.0,90753.0,0.110188]
[1731806125858,0.1118978,90758.0,90752.0,0.0008565]
[1731806126086,0.1118978,90758.0,90754.0,0.110187]
[1731806126501,0.0017138,90758.0,90757.0,0.110184]
[1731806127598,0.0017138,90758.0,90757.0,0.112184]
[1731806128520,0.9274276,90759.0,90758.0,0.112183]
[1731806132154,0.110168,90770.0,90758.0,0.112183]
[1731806132155,0.0017146,90772.0,90771.0,0.005]
[1731806132406,0.19692732,90795.0,90771.0,0.005]
[1731806132407,6e-07,90778.0,90777.0,0.12216]
[1731806132643,0.16578524,90815.0,90796.0,0.144737]
[1731806132644,0.16578524,90804.0,90796.0,0.144737]
[1731806132879,0.16578524,90804.0,90796.0,0.31596644]
[1731806133087,0.16578524,90815.0,90796.0,0.39016903]
[1731806133312,0.0017138,90816.0,90808.0,0.122122]
[1731806133520,0.0017138,90816.0,90808.0,0.3399]
[1731806133734,0.0017138,90816.0,90808.0,0.38369823]
[1731806134360,0.0017138,90816.0,90808.0,0.30018455]
[1731806134601,0.0017138,90816.0,90808.0,0.38369823]
[1731806134836,0.0017138,90816.0,90808.0,0.30018455]
[1731806135980,0.0017138,90816.0,90808.0,0.37658922]
[1731806136619,0.0017138,90816.0,90808.0,0.42126034]
[1731806137810,0.0017138,90816.0,90808.0,0.41926034]
[1731806138548,0.0017138,90816.0,90808.0,0.42126034]
[1731806139383,0.0017138,90816.0,90808.0,0.46040314]
[1731806139670,0.0017138,90816.0,90808.0,0.46240314]
[1731806139890,0.0017138,90816.0,90808.0,0.46040314]
[1731806140114,0.0017138,90816.0,90808.0,0.46240314]
[1731806140370,0.0017138,90816.0,90808.0,0.66640491]
[1731806140595,0.0017138,90816.0,90808.0,0.53950314]
[1731806140820,0.0017138,90816.0,90808.0,0.53750314]
[1731806141052,0.0017138,90816.0,90808.0,0.53950314]
[1731806141274,0.0017138,90816.0,90808.0,0.53750314]
[1731806141504,0.0017138,90816.0,90808.0,0.53950314]
[1731806141796,0.0017138,90816.0,90808.0,0.66640491]
[1731806143347,0.16578524,90835.0,90834.0,0.012]
[1731806143348,0.10178224,90835.0,90834.0,0.012]
[1731806143554,0.10178224,90835.0,90834.0,0.23115255]
[1731806143755,0.0017134,90840.0,90839.0,0.110084]
[1731806145612,0.0017134,90840.0,90839.0,0.11228528]
[1731806146845,0.0017134,90840.0,90839.0,0.110084]
[1731806147494,0.0017134,90840.0,90835.0,0.225177]
[1731806147701,0.110087,90837.0,90828.0,0.220196]
[1731806147910,0.110087,90837.0,90831.0,0.16578524]
[1731806148161,0.0017134,90840.0,90831.0,0.16578524]
[1731806148162,0.0017134,90840.0,90834.0,0.11009]
[1731806148573,0.0017134,90840.0,90835.0,0.110089]
[1731806148992,0.1117964,90840.0,90835.0,0.110089]
[1731806149413,0.1117964,90840.0,90830.0,0.16578524]
[1731806149414,0.110085,90839.0,90830.0,0.16578524]
[1731806149622,0.110085,90839.0,90834.0,0.11009]
[1731806150664,0.0812,90838.0,90826.0,0.2202]
[1731806150871,0.0812,90838.0,90832.0,0.220186]
[1731806151092,0.0812,90838.0,90834.0,0.11009]
[1731806151296,0.0812,90838.0,90832.0,0.220186]
[1731806151297,0.0812,90838.0,90835.0,0.110089]
[1731806151501,0.0812,90838.0,90826.0,0.005]
[1731806151502,0.0812,90838.0,90833.0,0.110091]
[1731806151704,0.110087,90837.0,90831.0,0.110093]
[1731806151968,0.110087,90837.0,90826.0,0.005]
[1731806151969,0.110087,90837.0,90832.0,0.110092]
[1731806152172,0.0812,90838.0,90832.0,0.110092]
[1731806152389,0.220174,90837.0,90821.0,0.005]
[1731806152589,0.20810177,90838.0,90820.0,0.16578524]
[1731806152792,0.20810177,90838.0,90822.0,0.110104]
[1731806152995,0.110099,90828.0,90822.0,0.110104]
[1731806154302,0.220192,90830.0,90820.0,0.16578524]
[1731806154530,0.110103,90825.0,90816.0,0.220225]
[1731806154792,0.220192,90830.0,90820.0,0.110106]
[1731806155024,0.110099,90827.0,90818.0,0.005]
[1731806155250,0.110099,90827.0,90821.0,0.110106]
[1731806155490,0.110101,90826.0,90821.0,0.110106]
[1731806156927,0.110099,90827.0,90821.0,0.110106]
[1731806157667,0.110101,90826.0,90821.0,0.110106]
[1731806158601,0.110099,90827.0,90819.0,0.110108]
[1731806158827,0.110099,90827.0,90815.0,0.220225]
[1731806159380,0.110099,90827.0,90780.0,0.44840177]
[1731806159381,0.220193,90829.0,90807.0,0.005]
[1731806159637,0.220193,90829.0,90796.0,0.16664134]
[1731806159638,0.110116,90813.0,90811.0,0.16578524]
[1731806160131,0.110122,90809.0,90802.0,0.1117794]
[1731806160369,0.24092,90810.0,90807.0,0.16578524]
[1731806160607,0.0812,90820.0,90816.0,0.220223]
[1731806160817,0.0812,90820.0,90804.0,0.005]
[1731806160818,0.0812,90820.0,90812.0,0.110117]
[1731806161034,0.110109,90819.0,90813.0,0.110116]
[1731806161253,0.0812,90820.0,90813.0,0.110116]
[1731806161465,0.0812,90820.0,90809.0,0.22024]
[1731806161466,0.0812,90820.0,90814.0,0.110114]
[1731806161902,0.0812,90820.0,90815.0,0.110113]
[1731806162117,0.0812,90820.0,90811.0,0.220237]
[1731806162325,0.0812,90820.0,90814.0,0.110114]
[1731806162536,0.191308,90820.0,90814.0,0.110114]
[1731806162760,0.191308,90820.0,90812.0,0.110117]
[1731806162991,0.191308,90820.0,90813.0,0.110115]
[1731806163456,0.191308,90820.0,90809.0,0.16778524]
[1731806163457,0.0812,90820.0,90810.0,0.22024]
[1731806163676,0.0812,90820.0,90809.0,0.16778524]
[1731806163889,0.04507995,90829.0,90809.0,0.16778524]
[1731806163890,0.301389,90831.0,90811.0,0.005]
[1731806164090,0.330286,90830.0,90822.0,0.110105]
[1731806164303,0.110097,90829.0,90822.0,0.110105]
[1731806164519,0.0812,90831.0,90820.0,0.16578524]
[1731806164732,0.0812,90831.0,90827.0,0.110098]
[1731806165383,0.0812,90831.0,90820.0,0.16578524]
[1731806165592,0.110099,90828.0,90822.0,0.110104]
[1731806165992,0.110099,90828.0,90820.0,0.16578524]
[1731806166256,0.110099,90828.0,90823.0,0.110103]
[1731806167183,0.110099,90828.0,90822.0,0.110104]
[1731806168648,0.0812,90831.0,90827.0,0.110098]
[1731806169482,0.0812,90831.0,90825.0,0.220202]
[1731806169483,0.0812,90831.0,90825.0,0.330303]
[1731806169689,0.191294,90831.0,90825.0,0.110101]
[1731806171184,0.191294,90831.0,90822.0,0.00220188]
[1731806171185,0.191294,90831.0,90826.0,0.1101]
[1731806171429,0.191294,90831.0,90820.0,0.16578524]
[1731806171430,0.0812,90831.0,90820.0,0.16578524]
[1731806171630,0.110099,90828.0,90822.0,0.110105]
[1731806172493,0.110099,90828.0,90823.0,0.110104]
[1731806172494,0.1109558,90828.0,90823.0,0.110104]
[1731806172874,0.0008568,90828.0,90820.0,0.16578524]
[1731806173280,0.0008568,90828.0,90825.0,0.110101]
[1731806173460,0.2262468,90831.0,90821.0,0.220213]
[1731806173695,0.110098,90828.0,90823.0,0.110103]
[1731806174793,0.110098,90828.0,90822.0,0.110105]
[1731806174928,0.110099,90827.0,90818.0,0.220219]
[1731806175139,0.110099,90827.0,90821.0,0.110106]
[1731806175558,0.220196,90828.0,90819.0,0.110108]
[1731806175760,0.110112,90817.0,90811.0,0.110118]
[1731806175977,0.0476,90824.0,90809.0,0.16578524]
[1731806176184,0.22021,90822.0,90809.0,0.16578524]
[1731806176395,0.0476,90824.0,90809.0,0.16578524]
[1731806176396,0.110119,90811.0,90809.0,0.16578524]
[1731806176599,0.110117,90812.0,90809.0,0.16578524]
[1731806176804,0.297833,90813.0,90807.0,0.110123]
[1731806176805,0.187716,90813.0,90807.0,0.110123]
[1731806177426,0.187716,90813.0,90808.0,0.110122]
[1731806177427,0.0776,90813.0,90808.0,0.110122]
[1731806177847,0.0776,90813.0,90802.0,0.2219104]
[1731806177848,0.0776,90813.0,90807.0,0.110123]